bitfinex-derivatives/quotes_SOLF0:USTF0_20250907
["timestamp","ask_amount","ask_price","bid_price","bid_amount"]
[1757241519327,5.52612023,203.25,203.21,4.51824334]
[1757241519527,7.71,203.24,203.22,4.51824334]
[1757241519724,5.52612023,203.25,203.2,8.03]
[1757241519924,5.52612023,203.25,203.21,4.51867403]
[1757241520119,7.71,203.24,203.22,4.51867403]
[1757241520324,7.71,203.24,203.17,4.4289]
[1757241520530,7.71,203.24,203.18,12.54912307]
[1757241520827,13.23612023,203.25,203.19,12.54912307]
[1757241521027,13.23612023,203.25,203.2,4.51912307]
[1757241521229,13.23612023,203.25,203.21,4.51912307]
[1757241521429,13.23612023,203.25,203.22,4.51912307]
[1757241521630,13.23612023,203.25,203.18,8.03]
[1757241521930,13.23612023,203.25,203.19,4.51932661]
[1757241522128,13.23612023,203.25,203.2,4.51932661]
[1757241522327,13.23612023,203.25,203.21,4.51932661]
[1757241522624,13.23612023,203.25,203.22,4.51932661]
[1757241522829,13.23612023,203.25,203.18,8.03]
[1757241523032,13.23612023,203.25,203.19,4.519713]
[1757241523228,5.52612023,203.25,203.2,12.549713]
[1757241523530,5.52612023,203.25,203.21,12.549713]
[1757241523830,7.71,203.24,203.22,4.519713]
[1757241524030,5.52612023,203.25,203.21,8.03]
[1757241524230,5.52612023,203.25,203.22,4.5201049]
[1757241524431,5.52612023,203.25,203.21,8.03]
[1757241524729,7.71,203.24,203.22,4.52052494]
[1757241524930,7.71,203.24,203.21,8.03]
[1757241525231,5.52612023,203.25,203.22,4.52052494]
[1757241525431,7.71,203.24,203.18,8.03]
[1757241525731,7.71,203.24,203.19,12.55057735]
[1757241525926,5.52612023,203.25,203.2,12.55057735]
[1757241526131,7.71,203.24,203.21,4.52057735]
[1757241526331,7.71,203.24,203.22,4.52057735]
[1757241526534,5.52612023,203.25,203.2,8.03]
[1757241526731,5.52612023,203.25,203.21,4.52099988]
[1757241526932,13.23612023,203.23,203.22,4.52099988]
[1757241527833,5.52612023,203.23,203.22,12.55099988]
[1757241531435,12.99612023,203.23,203.22,4.52099988]
[1757241537145,7.47,203.23,203.22,4.52099988]
[1757241541143,7.47,203.23,203.22,12.68099988]
[1757241541551,12.99612023,203.24,203.22,12.68237067]
[1757241541748,12.99612023,203.24,203.22,8.16]
[1757241542953,5.52612023,203.24,203.22,8.16]
[1757241543153,7.47,203.23,203.22,8.16]
[1757241543354,7.47,203.23,203.22,12.68289951]
[1757241543553,12.99612023,203.24,203.22,12.68289951]
[1757241543853,7.47,203.23,203.22,8.16]
[1757241544055,7.47,203.23,203.22,12.68289951]
[1757241545648,12.99612023,203.24,203.22,12.68289951]
[1757241545853,12.99612023,203.24,203.23,4.52289951]
[1757241547544,133.72,203.3,203.23,4.52289951]
[1757241547545,5.52612023,203.25,203.23,12.68289951]
[1757241547749,5.52612023,203.28,203.24,4.52289951]
[1757241547950,5.52612023,203.28,203.26,8.16]
[1757241548254,5.52612023,203.28,203.27,12.68289951]
[1757241549054,12.99612023,203.28,203.27,12.68289951]
[1757241549255,12.99612023,203.28,203.27,9.60679521]
[1757241550156,12.99612023,203.28,203.27,8.16]
[1757241550356,5.52612023,203.28,203.27,8.16]
[1757241555262,12.99612023,203.28,203.24,4.4275]
[1757241555452,12.99612023,203.28,203.23,8.16]
[1757241555659,12.99612023,203.28,203.22,4.4278]
[1757241555854,12.99612023,203.28,203.23,8.16]
[1757241556059,5.52612023,203.27,203.23,8.16]
[1757241556256,5.52612023,203.26,203.21,8.16]
[1757241556460,5.52612023,203.26,203.2,4.4283]
[1757241556761,5.52612023,203.26,203.21,8.16]
[1757241556962,5.52612023,203.26,203.2,4.4283]
[1757241557266,12.99612023,203.25,203.2,4.4283]
[1757241557561,12.99612023,203.23,203.21,8.16]
[1757241557862,5.52612023,203.23,203.16,8.16]
[1757241559266,13.57612023,203.23,203.16,8.16]
[1757241560965,13.57612023,203.23,203.17,7.65]
[1757241561265,13.57612023,203.23,203.18,4.46709526]
[1757241561456,8.05,203.21,203.19,12.11709526]
[1757241561761,8.05,203.21,203.19,7.65]
[1757241562959,13.57612023,203.21,203.19,7.65]
[1757241567265,8.05,203.21,203.19,7.65]
[1757241567666,8.05,203.21,203.2,4.46641976]
[1757241568972,8.05,203.22,203.2,12.11641976]
[1757241569271,8.05,203.22,203.21,4.46641976]
[1757241577178,13.57612023,203.22,203.21,4.46641976]
[1757241582382,13.57612023,203.22,203.21,4.46423632]
[1757241587190,8.05,203.22,203.21,4.46423632]
[1757241588280,5.52612023,203.23,203.21,4.46413436]
[1757241588482,8.05,203.22,203.19,7.65]
[1757241588790,8.05,203.22,203.2,4.46412964]
[1757241588986,8.05,203.22,203.21,4.46412964]
[1757241590191,8.05,203.22,203.19,7.65]
[1757241590484,8.05,203.22,203.2,11.96399318]
[1757241590685,8.05,203.22,203.2,7.5]
[1757241593196,8.05,203.22,203.21,4.46481481]
[1757241596186,13.57612023,203.22,203.21,4.46481481]
[1757241597698,13.57612023,203.22,203.16,84.6739475]
[1757241597899,7.49,203.21,203.18,7.5]
[1757241598101,7.49,203.21,203.19,11.97009684]
[1757241598298,7.49,203.21,203.2,4.47009684]
[1757241599200,13.01612023,203.21,203.2,4.47009684]
[1757241604204,7.49,203.21,203.2,4.47009684]
[1757241608804,7.49,203.21,203.2,11.97009684]
[1757241609007,8.30605616,203.23,203.2,11.97009684]
[1757241609008,7.49,203.22,203.2,11.97009684]
[1757241609307,7.49,203.22,203.21,4.47009684]
[1757241617316,15.79605616,203.22,203.21,4.47009684]
[1757241627122,7.49,203.22,203.21,4.47009684]
[1757241640438,7.49,203.22,203.18,7.5]
[1757241640735,5.53688832,203.2,203.19,12.1114453]
[1757241647249,5.53688832,203.21,203.19,12.1114453]
[1757241647549,5.53688832,203.21,203.2,4.4714453]
[1757241649650,5.53688832,203.21,203.2,12.3114453]
[1757241651954,5.53688832,203.25,203.21,7.84]
[1757241652155,5.53688832,203.25,203.23,7.84]
[1757241652354,5.53688832,203.25,203.24,12.3114453]
[1757241652551,5.53688832,203.26,203.24,4.4714453]
[1757241652755,8.30605616,203.28,203.26,7.84]
[1757241653248,7.96,203.29,203.26,4.76371323]
[1757241653249,16.26605616,203.29,203.26,4.76371323]
[1757241653659,7.96,203.28,203.26,4.76371323]
[1757241655257,7.96,203.28,203.23,4.4276]
[1757241655458,5.5266815,203.27,203.24,4.57414351]
[1757241655762,5.5266815,203.28,203.25,4.57414351]
[1757241656062,5.5266815,203.28,203.27,7.84]
[1757241656264,5.5266815,203.29,203.27,12.41414351]
[1757241656463,13.4866815,203.29,203.27,7.84]
[1757241657161,16.26605616,203.29,203.27,7.84]
[1757241657352,7.96,203.29,203.27,7.84]
[1757241657558,8.30605616,203.3,203.26,7.84]
[1757241657755,5.522082,203.27,203.26,7.84]
[1757241657955,5.522082,203.27,203.26,12.4095441]
[1757241661163,5.522082,203.28,203.26,12.4095441]
[1757241661367,5.522082,203.28,203.27,12.4095441]
[1757241664373,5.522082,203.28,203.27,7.84]
[1757241664871,5.522082,203.28,203.27,12.40618026]
[1757241665268,5.522082,203.28,203.27,7.84]
[1757241665870,5.522082,203.28,203.27,12.40555606]
[1757241666370,5.522082,203.28,203.27,7.84]
[1757241667172,5.522082,203.29,203.27,7.84]
[1757241667372,5.522082,203.29,203.25,4.4272]
[1757241667572,5.522082,203.3,203.26,4.56518936]
[1757241667774,5.522082,203.3,203.28,7.84]
[1757241670077,13.482082,203.31,203.28,7.84]
[1757241671672,5.522082,203.31,203.28,7.84]
[1757241671976,5.522082,203.32,203.24,7.84]
[1757241672176,7.96,203.32,203.26,7.84]
[1757241672377,13.482082,203.33,203.27,4.56120874]
[1757241672566,13.482082,203.33,203.29,7.84]
[1757241672768,13.482082,203.33,203.25,7.84]
[1757241672976,13.482082,203.33,203.27,7.84]
[1757241673176,7.96,203.32,203.29,7.84]
[1757241673370,7.96,203.32,203.25,7.84]
[1757241673577,7.96,203.32,203.26,4.55971056]
[1757241673776,13.482082,203.33,203.28,7.84]
[1757241673978,13.482082,203.33,203.27,7.84]
[1757241674173,5.522082,203.33,203.28,4.55971056]
[1757241674374,5.522082,203.33,203.29,7.84]
[1757241674779,7.96,203.32,203.29,7.84]
[1757241674976,5.522082,203.33,203.29,7.84]
[1757241675175,7.96,203.32,203.29,7.84]
[1757241675478,5.522082,203.33,203.29,7.84]
[1757241675680,7.96,203.32,203.29,7.84]
[1757241676478,5.522082,203.33,203.29,7.84]
[1757241676678,7.96,203.32,203.29,7.84]
[1757241678781,5.522082,203.33,203.29,7.84]
[1757241678984,7.96,203.32,203.29,7.84]
[1757241679679,5.522082,203.33,203.28,8.1]
[1757241679883,5.522082,203.34,203.28,8.1]
[1757241680378,5.522082,203.34,203.29,8.1]
[1757241681184,5.522082,203.34,203.3,8.1]
[1757241683686,12.932082,203.34,203.3,8.1]
[1757241683891,12.932082,203.34,203.29,4.4263]
[1757241685096,12.932082,203.34,203.3,8.1]
[1757241685501,12.932082,203.34,203.29,4.4263]
[1757241685696,5.522082,203.34,203.33,4.4255]
[1757241685901,8.30605616,203.37,203.34,8.1]
[1757241685902,7.41,203.37,203.34,8.1]
[1757241686202,12.932082,203.36,203.27,17.02]
[1757241686499,12.932082,203.36,203.3,8.1]
[1757241686896,5.522082,203.35,203.29,4.4263]
[1757241687103,7.41,203.34,203.31,8.1]
[1757241688704,46.40017628,203.44,203.27,8.1]
[1757241688705,12.932082,203.35,203.27,8.1]
[1757241689006,7.41,203.34,203.28,12.65746203]
[1757241689204,5.522082,203.35,203.29,4.55746203]
[1757241689500,12.932082,203.34,203.28,12.5266]
[1757241689705,12.932082,203.34,203.29,12.65798453]
[1757241689706,7.41,203.33,203.29,12.65798453]
[1757241689902,7.41,203.33,203.29,8.1]
[1757241690206,7.41,203.33,203.3,12.65875404]
[1757241690504,5.522082,203.34,203.28,4.4266]
[1757241690704,5.522082,203.34,203.3,8.1]
[1757241690705,7.41,203.33,203.3,8.1]
[1757241690905,7.41,203.33,203.28,4.4266]
[1757241691202,5.522082,203.34,203.29,4.55880193]
[1757241691406,5.522082,203.34,203.31,8.1]
[1757241691705,5.522082,203.34,203.28,4.4266]
[1757241691905,12.932082,203.34,203.3,8.1]
[1757241692107,12.932082,203.34,203.29,8.1]
[1757241692403,7.41,203.33,203.31,8.1]
[1757241694304,12.932082,203.33,203.31,8.1]
[1757241696408,5.522082,203.33,203.28,8.1]
[1757241696702,7.41,203.32,203.29,4.56999355]
[1757241696905,5.522082,203.32,203.3,4.56999355]
[1757241697102,12.932082,203.32,203.31,4.57034198]
[1757241698003,8.30605616,203.33,203.24,8.1]
[1757241698210,5.52004893,203.3,203.25,4.57214954]
[1757241698403,7.41,203.29,203.26,4.57214954]
[1757241698605,5.52004893,203.3,203.27,4.57214954]
[1757241698804,7.41,203.29,203.28,4.57214954]
[1757241702209,12.93004893,203.29,203.28,4.57214954]
[1757241709919,5.52004893,203.29,203.28,4.57736561]
[1757241710114,13.47004893,203.29,203.28,4.57736561]
[1757241717522,5.52004893,203.29,203.28,4.57735031]
[1757241717724,13.47004893,203.29,203.28,4.57735031]
[1757241722127,7.95,203.29,203.28,4.57735031]
[1757241722429,13.47004893,203.29,203.28,4.57735031]
[1757241723130,7.95,203.29,203.28,4.57735031]
[1757241723730,7.95,203.29,203.24,7.78]
[1757241723930,7.95,203.29,203.26,7.78]
[1757241724133,5.52004893,203.3,203.27,4.57675075]
[1757241724328,7.95,203.29,203.28,4.57675075]
[1757241726431,13.47004893,203.29,203.28,4.57675075]
[1757241731232,13.47004893,203.29,203.28,4.54118199]
[1757241738137,7.95,203.29,203.28,4.54118199]
[1757241739941,16.25605616,203.29,203.28,4.54118199]
[1757241741939,8.30605616,203.29,203.28,12.38118199]
[1757241742141,8.30605616,203.3,203.29,7.84]
[1757241742438,8.30605616,203.3,203.29,12.38118199]
[1757241743643,5.53295146,203.3,203.29,4.54118199]
[1757241744336,5.53295146,203.3,203.29,12.38118199]
[1757241746346,5.53295146,203.31,203.29,12.38118199]
[1757241746644,5.53295146,203.31,203.3,12.38118199]
[1757241748448,8.30605616,203.33,203.3,12.38118199]
[1757241748650,7.8,203.32,203.31,4.54118199]
[1757241754257,8.30605616,203.33,203.31,4.54118199]
[1757241754455,8.30605616,203.33,203.28,7.84]
[1757241754658,5.52777339,203.3,203.29,12.36263471]
[1757241756460,5.52777339,203.31,203.3,7.84]
[1757241756760,5.52777339,203.31,203.3,12.36263471]
[1757241757153,8.30605616,203.32,203.3,12.35514952]
[1757241757357,8.30605616,203.32,203.31,12.35514952]
[1757241758163,8.30605616,203.33,203.31,12.35514952]
[1757241758462,16.10605616,203.33,203.32,4.51514952]
[1757241762364,16.10605616,203.33,203.31,7.84]
[1757241762864,16.10605616,203.33,203.32,4.5132168]
[1757241767267,7.8,203.33,203.32,4.5132168]
[1757241770374,16.10605616,203.33,203.27,7.87]
[1757241770572,5.52540473,203.31,203.28,4.51265141]
[1757241770771,8.2,203.3,203.29,4.51265141]
[1757241776775,13.72540473,203.3,203.29,4.51265141]
[1757241777469,8.2,203.3,203.29,4.51265141]
[1757241780775,8.30605616,203.32,203.29,12.38265141]
[1757241781080,8.30605616,203.32,203.2,120.006]
[1757241781081,8.2,203.32,203.3,12.38265141]
[1757241781380,8.2,203.32,203.31,4.51265141]
[1757241785384,8.2,203.31,203.27,7.87]
[1757241785681,13.72839159,203.29,203.28,4.5097872]
[1757241785882,13.72839159,203.29,203.28,12.3797872]
[1757241787383,8.2,203.29,203.28,12.3797872]
[1757241788186,8.2,203.29,203.28,4.5097872]
[1757241813401,8.2,203.29,203.28,1.43371292]
[1757241815200,8.30605616,203.3,203.25,8.2]
[1757241815395,13.7191014,203.28,203.23,8.2]
[1757241815601,13.7191014,203.28,203.22,4.4278]
[1757241815800,13.7191014,203.28,203.23,8.2]
[1757241815996,5.5291014,203.28,203.23,8.2]
[1757241818504,5.5291014,203.27,203.23,8.2]
[1757241822107,5.5291014,203.27,203.23,4.4277]
[1757241822306,5.5291014,203.27,203.24,8.2]
[1757241823006,5.5291014,203.28,203.21,8.2]
[1757241823206,5.5291014,203.29,203.21,8.2]
[1757241823909,5.5291014,203.3,203.28,8.2]
[1757241824311,5.5291014,203.31,203.25,8.2]
[1757241824909,5.5291014,203.31,203.29,8.2]
[1757241825211,5.5291014,203.31,203.28,4.4265]
[1757241825400,5.5291014,203.31,203.29,4.45601987]
[1757241825600,5.5291014,203.31,203.3,12.65601987]
[1757241847727,5.5291014,203.31,203.3,11.99601987]
[1757241848031,5.5291014,203.32,203.31,7.54]
[1757241848329,5.5291014,203.32,203.31,11.99601987]
[1757241852936,5.5291014,203.33,203.31,11.99601987]
[1757241853139,5.5291014,203.33,203.32,11.99601987]
[1757241866243,13.3091014,203.33,203.32,4.45601987]
[1757241867149,7.78,203.33,203.32,4.45601987]
[1757241871350,16.08605616,203.35,203.32,11.94601987]
[1757241871549,7.78,203.34,203.33,4.45601987]
[1757241872451,7.78,203.34,203.33,1.38078128]
[1757241876659,16.08605616,203.35,203.33,8.87078128]
[1757241876857,16.08605616,203.35,203.33,7.49]
[1757241877357,7.78,203.34,203.33,7.49]
[1757241885159,7.78,203.34,203.28,7.49]
[1757241885462,5.52972928,203.32,203.29,4.39541317]
[1757241885657,5.52972928,203.32,203.31,7.49]
[1757241885861,5.52972928,203.32,203.31,11.88541317]
[1757241886764,5.52972928,203.33,203.32,7.49]
[1757241886967,5.52972928,203.33,203.32,11.88541317]
[1757241887366,16.08605616,203.34,203.32,11.88541317]
[1757241887666,16.08605616,203.34,203.33,4.39541317]
[1757241897378,7.78,203.34,203.33,4.39541317]
[1757241900477,8.30605616,203.35,203.33,4.39541317]
[1757241900780,8.30605616,203.35,203.34,12.18541317]
[1757241901283,8.30605616,203.36,203.34,12.18541317]
[1757241901482,16.48605616,203.36,203.35,4.39541317]
[1757241907186,16.48605616,203.36,203.35,1.32032309]
[1757241915692,8.30605616,203.36,203.35,9.11032309]
[1757241916086,8.30605616,203.37,203.35,1.32032309]
[1757241916286,16.48605616,203.38,203.36,7.79]
[1757241917589,8.30605616,203.38,203.32,4.4257]
[1757241917789,5.52903511,203.35,203.32,4.4257]
[1757241918089,5.52903511,203.36,203.32,4.4257]
[1757241918298,5.52903511,203.36,203.33,7.79]
[1757241918794,5.52903511,203.36,203.32,4.4257]
[1757241919289,5.52903511,203.36,203.34,7.9]
[1757241919493,5.52903511,203.36,203.35,12.42305236]
[1757241925003,13.58903511,203.36,203.35,4.52305236]
[1757241925201,8.06,203.36,203.35,4.52305236]
[1757241925399,16.36605616,203.36,203.29,7.9]
[1757241925705,8.06,203.32,203.3,4.52385068]
[1757241925903,8.06,203.32,203.31,4.52385068]
[1757241927404,13.58675572,203.32,203.31,4.52385068]
[1757241927703,13.58675572,203.32,203.31,4.52381824]
[1757241931609,47.02,203.35,203.24,76.70394321]
[1757241931806,8.06,203.26,203.25,4.52488759]
[1757241948215,8.06,203.26,203.25,12.42488759]
[1757241949312,8.06,203.26,203.25,4.52488759]
[1757241953522,8.06,203.26,203.25,4.44316042]
[1757241960321,5.52568959,203.31,203.25,4.44316042]
[1757241960525,7.76,203.3,203.26,12.45316042]
[1757241960824,13.28568959,203.31,203.27,4.44333742]
[1757241961024,7.76,203.31,203.27,8.01]
[1757241961325,7.76,203.3,203.27,8.01]
[1757241961525,5.52568959,203.31,203.27,8.01]
[1757241962025,7.76,203.3,203.27,8.01]
[1757241963626,5.52568959,203.31,203.27,8.01]
[1757241963818,7.76,203.3,203.27,8.01]
[1757241964128,7.76,203.3,203.28,4.44612948]
[1757241964429,5.52568959,203.31,203.27,8.01]
[1757241964625,5.52568959,203.31,203.28,4.44635149]
[1757241964924,5.52568959,203.32,203.29,4.44606773]
[1757241965125,13.28568959,203.33,203.3,12.45606773]
[1757241965428,7.76,203.32,203.3,8.01]
[1757241967132,7.76,203.32,203.31,4.50272802]
[1757241968131,7.76,203.32,203.31,4.50401928]
[1757241969228,13.28568959,203.32,203.31,4.50401928]
[1757241972235,7.76,203.32,203.23,22.22]
[1757241972439,5.52108837,203.27,203.24,4.50878791]
[1757241972631,5.52108837,203.27,203.25,4.50878791]
[1757241972632,7.76,203.26,203.25,4.50878791]
[1757241974136,13.28108837,203.26,203.25,4.50878791]
[1757241974331,7.76,203.26,203.25,4.50878791]
[1757241974935,5.52108837,203.27,203.25,12.51878791]
[1757241975136,5.52108837,203.27,203.26,4.50878791]
[1757241975738,13.28108837,203.27,203.26,4.50878791]
[1757241979338,5.52108837,203.27,203.26,12.48878791]
[1757241979638,5.52108837,203.28,203.27,7.98]
[1757241979937,5.52108837,203.28,203.27,12.48878791]
[1757241982141,5.52108837,203.29,203.27,12.48878791]
[1757241982340,5.52108837,203.29,203.28,12.48878791]
[1757241983944,5.52108837,203.31,203.28,4.50878791]
[1757241984145,5.52108837,203.31,203.3,7.98]
[1757241984344,5.52108837,203.31,203.3,12.48878791]
[1757241986145,13.29108837,203.31,203.3,4.50878791]
[1757241993955,7.77,203.31,203.3,4.50878791]
[1757242006665,16.05853439,203.33,203.3,4.50878791]
[1757242006860,16.05853439,203.33,203.31,7.98]
[1757242007367,8.28853439,203.33,203.31,7.98]
[1757242007566,7.77,203.32,203.26,7.98]
[1757242007868,5.52178493,203.3,203.27,4.5070052]
[1757242008166,5.52178493,203.3,203.29,7.98]
[1757242008362,5.52178493,203.3,203.29,12.4870052]
[1757242010870,5.52178493,203.31,203.3,7.74]
[1757242011168,5.52178493,203.32,203.31,7.74]
[1757242011470,5.52178493,203.32,203.31,12.24702881]
[1757242022280,8.28853439,203.34,203.31,12.24702881]
[1757242022481,8.05,203.33,203.32,4.50702881]
[1757242025179,8.05,203.33,203.32,4.51025659]
[1757242037602,16.33978493,203.33,203.32,4.51025659]
[1757242037802,8.05,203.33,203.24,7.74]
[1757242038000,8.05,203.33,203.22,78.48861468]
[1757242038001,8.05,203.27,203.25,12.2572667]
[1757242038197,5.5252755,203.26,203.25,7.74]
[1757242038401,5.5252755,203.26,203.25,4.51574747]
[1757242038605,13.5752755,203.26,203.25,4.51574747]
[1757242040701,16.33788063,203.26,203.25,4.51574747]
[1757242040894,7.66,203.25,203.17,7.82]
[1757242041100,7.66,203.23,203.18,4.51394685]
[1757242041299,7.66,203.23,203.2,7.82]
[1757242041603,7.66,203.23,203.21,4.51394685]
[1757242041803,7.66,203.23,203.22,4.51394685]
[1757242046107,7.66,203.23,203.2,7.82]
[1757242046307,7.66,203.23,203.21,4.50391503]
[1757242046509,7.66,203.23,203.2,7.82]
[1757242046705,7.66,203.23,203.21,4.5036903]
[1757242047008,7.66,203.23,203.2,7.82]
[1757242047209,7.66,203.23,203.21,4.50276727]
[1757242047410,7.66,203.23,203.2,7.82]
[1757242047606,7.66,203.23,203.21,4.50253091]
[1757242047808,7.66,203.23,203.2,7.82]
[1757242048001,7.66,203.23,203.21,4.5025315]
[1757242048206,7.66,203.23,203.2,7.82]
[1757242048503,7.66,203.23,203.21,4.50148309]
[1757242048701,7.66,203.23,203.2,7.82]
[1757242049008,7.66,203.23,203.21,12.32148309]
[1757242049311,7.66,203.23,203.21,7.82]
[1757242050913,7.66,203.25,203.17,7.82]
[1757242051114,13.17957936,203.25,203.18,4.49970426]
[1757242051417,13.17957936,203.25,203.19,12.31970426]
[1757242051610,7.66,203.24,203.21,7.82]
[1757242051914,5.51957936,203.25,203.21,7.82]
[1757242052112,7.66,203.24,203.21,7.82]
[1757242052808,5.51957936,203.26,203.21,7.82]
[1757242053514,7.66,203.25,203.21,7.82]
[1757242053710,5.51957936,203.26,203.21,7.82]
[1757242053916,7.66,203.25,203.21,7.82]
[1757242055208,5.51957936,203.26,203.21,7.82]
[1757242055411,7.66,203.25,203.21,7.82]
[1757242056011,5.51957936,203.26,203.21,7.82]
[1757242056212,7.66,203.25,203.21,7.82]
[1757242056812,5.51957936,203.26,203.21,7.82]
[1757242057610,5.51957936,203.26,203.16,450.28]
[1757242057611,7.66,203.25,203.17,7.82]
[1757242057817,7.66,203.25,203.18,4.49945896]
[1757242058015,5.51957936,203.26,203.19,4.49945896]
[1757242058216,7.66,203.25,203.17,7.82]
[1757242058421,7.66,203.25,203.18,4.49917057]
[1757242058621,7.66,203.25,203.2,7.82]
[1757242058822,5.51957936,203.26,203.16,450.28]
[1757242059121,7.66,203.25,203.18,7.82]
[1757242059419,7.66,203.25,203.19,4.49917116]
[1757242059718,7.66,203.25,203.18,7.82]
[1757242059920,5.51957936,203.26,203.19,4.49896765]
[1757242060113,7.66,203.25,203.17,7.82]
[1757242060314,7.66,203.25,203.18,4.49879559]
[1757242060517,7.66,203.25,203.2,7.82]
[1757242060718,5.51957936,203.26,203.16,450.28]
[1757242060918,7.66,203.25,203.18,7.82]
[1757242061119,7.66,203.25,203.17,4.49884418]
[1757242061120,5.51957936,203.26,203.19,4.49884418]
[1757242061316,7.66,203.25,203.17,7.82]
[1757242061521,7.66,203.25,203.19,7.82]
[1757242068129,5.51957936,203.26,203.2,4.50060925]
[1757242068331,7.66,203.25,203.17,7.82]
[1757242068634,7.66,203.25,203.19,7.82]
[1757242068934,5.51957936,203.26,203.2,4.50060925]
[1757242069131,7.66,203.25,203.19,7.82]
[1757242069430,7.66,203.25,203.2,4.50119443]
[1757242069632,7.66,203.25,203.19,7.82]
[1757242069833,5.51957936,203.26,203.2,4.50119443]
[1757242070030,13.33957936,203.25,203.17,7.49]
[1757242070331,13.33957936,203.25,203.19,7.49]
[1757242072134,5.51957936,203.24,203.16,119.5]
[1757242072329,5.51957936,203.24,203.17,4.50331623]
[1757242072634,7.82,203.23,203.2,7.49]
[1757242073536,5.51957936,203.24,203.2,7.49]
[1757242073931,7.82,203.23,203.2,7.49]
[1757242074131,5.51957936,203.24,203.2,7.49]
[1757242074426,7.82,203.23,203.2,7.49]
[1757242074627,5.51957936,203.24,203.2,7.49]
[1757242075235,7.82,203.23,203.2,7.49]
[1757242075637,5.51957936,203.24,203.2,7.49]
[1757242075832,7.82,203.23,203.2,7.49]
[1757242077034,5.51957936,203.24,203.2,7.49]
[1757242077337,13.33957936,203.23,203.2,7.49]
[1757242077537,13.33957936,203.23,203.15,7.49]
[1757242077738,13.33957936,203.23,203.17,7.49]
[1757242077940,7.82,203.23,203.18,4.50855493]
[1757242078140,7.82,203.23,203.2,7.49]
[1757242078440,7.82,203.23,203.21,11.99855493]
[1757242078640,7.82,203.23,203.21,7.49]
[1757242079243,13.33957936,203.23,203.21,7.49]
[1757242080145,13.33957936,203.23,203.22,4.51362694]
[1757242081145,7.82,203.23,203.22,4.51362694]
[1757242083147,8.28788063,203.24,203.22,4.51362694]
[1757242083448,16.10788063,203.25,203.23,12.00362694]
[1757242083651,16.10788063,203.25,203.23,7.49]
[1757242084148,7.82,203.25,203.24,4.52215667]
[1757242089945,110.84592268,203.28,203.24,4.52215667]
[1757242090251,8.2906433,203.27,203.25,12.01067108]
[1757242090443,8.2906433,203.27,203.26,4.52067108]
[1757242090843,8.2906433,203.27,203.26,12.01067108]
[1757242091349,126.95656598,203.28,203.26,12.01067108]
[1757242091548,126.95656598,203.28,203.27,4.52067108]
[1757242093053,119.13656598,203.28,203.27,12.01067108]
[1757242093254,8.2906433,203.3,203.27,12.01067108]
[1757242093554,8.2906433,203.31,203.28,4.52067108]
[1757242093853,5.52254969,203.29,203.25,7.49]
[1757242094054,5.52254969,203.29,203.26,4.5149283]
[1757242094253,7.82,203.33,203.22,11.74]
[1757242094254,5.52254969,203.3,203.27,4.5149283]
[1757242094454,5.52254969,203.3,203.29,7.49]
[1757242094645,5.52254969,203.3,203.29,12.0049283]
[1757242095253,5.52254969,203.31,203.29,12.0049283]
[1757242095453,5.52254969,203.31,203.3,12.0049283]
[1757242097054,5.52254969,203.31,203.3,7.49]
[1757242097751,5.52254969,203.32,203.31,7.49]
[1757242097951,5.52254969,203.33,203.22,11.74]
[1757242098252,5.52254969,203.33,203.24,7.49]
[1757242098554,5.52254969,203.33,203.26,7.49]
[1757242098858,5.52254969,203.33,203.28,7.49]
[1757242099051,5.52254969,203.33,203.29,4.50543224]
[1757242099354,5.52254969,203.34,203.28,7.49]
[1757242099650,13.17254969,203.34,203.3,7.98]